[Event "Early Titled Tuesday Blitz | February 8 2022"]
[White "Muradov, Soltan"]
[Black "Atakhan, Abtin"]
[WhiteFideId "14002108"]
[BlackFideId "22502203"]
[WhiteElo "1854"]
[BlackElo "2119"]
[Result "0-1"]
[Round "08"]
[TimeControl "180+1"]
[Date "2022.02.08"]
[WhiteClock "0:00:04"]
[BlackClock "0:00:14"]

1. c4 {[%clk 0:02:58]}  e5 {[%clk 0:02:33]} 2. Nc3 {[%clk 0:02:57]}  Nc6 {[%clk 0:02:33]} 3. d3 {[%clk 0:02:56]}  f5 {[%clk 0:02:30]} 4. g3 {[%clk 0:02:53]}  Nf6 {[%clk 0:02:29]} 5. Bg2 {[%clk 0:02:54]}  d6 {[%clk 0:02:28]} 6. e3 {[%clk 0:02:54]}  g6 {[%clk 0:02:24]} 7. Nge2 {[%clk 0:02:54]}  Bg7 {[%clk 0:02:24]} 8. a3 {[%clk 0:02:54]}  O-O {[%clk 0:02:23]} 9. b4 {[%clk 0:02:54]}  Rb8 {[%clk 0:02:18]} 10. b5 {[%clk 0:02:50]}  Ne7 {[%clk 0:02:18]} 11. Bb2 {[%clk 0:02:51]}  Be6 {[%clk 0:02:18]} 12. O-O {[%clk 0:02:35]}  c6 {[%clk 0:02:18]} 13. a4 {[%clk 0:02:35]}  g5 {[%clk 0:02:17]} 14. a5 {[%clk 0:02:18]}  f4 {[%clk 0:02:08]} 15. exf4 {[%clk 0:01:56]}  gxf4 {[%clk 0:02:05]} 16. gxf4 {[%clk 0:01:57]}  Nh5 {[%clk 0:01:58]} 17. Ne4 {[%clk 0:01:22]}  Nxf4 {[%clk 0:01:42]} 18. Nxf4 {[%clk 0:01:21]}  Rxf4 {[%clk 0:01:43]} 19. Kh1 {[%clk 0:01:14]}  Ng6 {[%clk 0:01:40]} 20. Ba3 {[%clk 0:01:04]}  c5 {[%clk 0:01:21]} 21. Bc1 {[%clk 0:00:56]}  Qh4 {[%clk 0:00:57]} 22. Bxf4 {[%clk 0:00:57]}  exf4 {[%clk 0:00:51]} 23. Ra2 {[%clk 0:00:35]}  f3 {[%clk 0:00:43]} 24. Qxf3 {[%clk 0:00:32]}  Be5 {[%clk 0:00:43]} 25. Ng3 {[%clk 0:00:32]}  Nf4 {[%clk 0:00:32]} 26. Rg1 {[%clk 0:00:33]}  d5 {[%clk 0:00:28]} 27. Re2 {[%clk 0:00:29]}  Bg4 {[%clk 0:00:20]} 28. Rxe5 {[%clk 0:00:22]}  Bxf3 {[%clk 0:00:19]} 29. Bxf3 {[%clk 0:00:22]}  Kh8 {[%clk 0:00:18]} 30. cxd5 {[%clk 0:00:13]}  Nxd3 {[%clk 0:00:17]} 31. Re2 {[%clk 0:00:10]}  Rf8 {[%clk 0:00:16]} 32. Be4 {[%clk 0:00:04]}  Nxf2+ {[%clk 0:00:14]} 33. Kg2 {[%clk 0:00:04]}  Qh3# {[%clk 0:00:14]} 0-1


[Site "https://www.chess.com"]

[Event "Early Titled Tuesday Blitz | February 8 2022"]
[White "Navara, David"]
[Black "Pakleza, Zbigniew"]
[WhiteFideId "309095"]
[BlackFideId "1119290"]
[WhiteElo "2686"]
[BlackElo "2467"]
[Result "1/2-1/2"]
[Round "08"]
[TimeControl "180+1"]
[Date "2022.02.08"]
[WhiteClock "0:00:03"]
[BlackClock "0:00:04"]

1. e4 {[%clk 0:03:00]}  d6 {[%clk 0:02:57]} 2. d4 {[%clk 0:03:00]}  Nf6 {[%clk 0:02:58]} 3. Nc3 {[%clk 0:03:00]}  c6 {[%clk 0:02:59]} 4. f4 {[%clk 0:02:59]}  Qb6 {[%clk 0:02:58]} 5. e5 {[%clk 0:02:51]}  Nd5 {[%clk 0:02:59]} 6. Nxd5 {[%clk 0:02:49]}  cxd5 {[%clk 0:03:00]} 7. Bd3 {[%clk 0:02:42]}  Nc6 {[%clk 0:03:00]} 8. c3 {[%clk 0:02:42]}  g6 {[%clk 0:03:00]} 9. h3 {[%clk 0:02:27]}  Bf5 {[%clk 0:02:59]} 10. Bxf5 {[%clk 0:02:21]}  gxf5 {[%clk 0:03:00]} 11. Qh5 {[%clk 0:02:21]}  e6 {[%clk 0:02:58]} 12. Nf3 {[%clk 0:02:18]}  Qc7 {[%clk 0:02:42]} 13. Ng5 {[%clk 0:02:07]}  Qd7 {[%clk 0:02:41]} 14. Be3 {[%clk 0:01:56]}  h6 {[%clk 0:02:36]} 15. O-O-O {[%clk 0:01:51]}  Rg8 {[%clk 0:01:59]} 16. Nh7 {[%clk 0:01:51]}  Bg7 {[%clk 0:02:00]} 17. g4 {[%clk 0:01:51]}  fxg4 {[%clk 0:01:50]} 18. hxg4 {[%clk 0:01:38]}  O-O-O {[%clk 0:01:50]} 19. f5 {[%clk 0:01:21]}  dxe5 {[%clk 0:01:40]} 20. f6 {[%clk 0:01:21]}  exd4 {[%clk 0:01:31]} 21. fxg7 {[%clk 0:01:21]}  dxe3 {[%clk 0:00:55]} 22. Nf6 {[%clk 0:01:21]}  Qc7 {[%clk 0:00:40]} 23. Qxh6 {[%clk 0:01:15]}  Qe5 {[%clk 0:00:36]} 24. Rh5 {[%clk 0:01:05]}  Qg3 {[%clk 0:00:27]} 25. Rh3 {[%clk 0:00:53]}  Qf2 {[%clk 0:00:24]} 26. Nxg8 {[%clk 0:00:45]}  e2 {[%clk 0:00:24]} 27. Nf6 {[%clk 0:00:32]}  Ne5 {[%clk 0:00:16]} 28. g8=Q {[%clk 0:00:21]}  exd1=Q+ {[%clk 0:00:15]} 29. Kxd1 {[%clk 0:00:21]}  Rxg8 {[%clk 0:00:16]} 30. Nxg8 {[%clk 0:00:22]}  Nc4 {[%clk 0:00:15]} 31. Rh2 {[%clk 0:00:07]}  Nxb2+ {[%clk 0:00:09]} 32. Kc1 {[%clk 0:00:07]}  Nd3+ {[%clk 0:00:10]} 33. Kb1 {[%clk 0:00:07]}  Qg1+ {[%clk 0:00:03]} 34. Kc2 {[%clk 0:00:07]}  Ne1+ {[%clk 0:00:03]} 35. Kb3 {[%clk 0:00:04]}  Qb6+ {[%clk 0:00:03]} 36. Ka4 {[%clk 0:00:02]}  Qa6+ {[%clk 0:00:02]} 37. Kb4 {[%clk 0:00:03]}  Qb6+ {[%clk 0:00:03]} 38. Ka4 {[%clk 0:00:03]}  Qa6+ {[%clk 0:00:03]} 39. Kb4 {[%clk 0:00:03]}  Qb6+ {[%clk 0:00:04]} 40. Ka4 {[%clk 0:00:03]} 1/2-1/2


[Site "https://www.chess.com"]

[Event "Early Titled Tuesday Blitz | February 8 2022"]
[White "Nazari, Arad"]
[Black "Kanyamarala, Tarun"]
[WhiteFideId "12577324"]
[BlackFideId "45004714"]
[WhiteElo "2120"]
[BlackElo "2144"]
[Result "1-0"]
[Round "08"]
[TimeControl "180+1"]
[Date "2022.02.08"]
[WhiteClock "0:01:46"]
[BlackClock "0:00:50"]

1. e4 {[%clk 0:03:00]}  c5 {[%clk 0:03:00]} 2. Nf3 {[%clk 0:03:00]}  Nc6 {[%clk 0:03:01]} 3. Bb5 {[%clk 0:03:01]}  g6 {[%clk 0:02:59]} 4. O-O {[%clk 0:02:59]}  Bg7 {[%clk 0:03:00]} 5. Re1 {[%clk 0:02:59]}  e5 {[%clk 0:03:00]} 6. b4 {[%clk 0:02:56]}  Nxb4 {[%clk 0:02:56]} 7. c3 {[%clk 0:02:55]}  Nc6 {[%clk 0:02:54]} 8. d4 {[%clk 0:02:51]}  cxd4 {[%clk 0:02:46]} 9. cxd4 {[%clk 0:02:51]}  Nxd4 {[%clk 0:02:46]} 10. Nxd4 {[%clk 0:02:50]}  exd4 {[%clk 0:02:47]} 11. Qb3 {[%clk 0:02:49]}  Ne7 {[%clk 0:02:43]} 12. Nd2 {[%clk 0:02:41]}  O-O {[%clk 0:02:43]} 13. e5 {[%clk 0:02:37]}  a6 {[%clk 0:02:27]} 14. Bd3 {[%clk 0:02:33]}  b5 {[%clk 0:02:21]} 15. Ba3 {[%clk 0:02:31]}  Bb7 {[%clk 0:02:20]} 16. Ne4 {[%clk 0:02:29]}  Bd5 {[%clk 0:02:14]} 17. Bxe7 {[%clk 0:02:22]}  Bxb3 {[%clk 0:02:02]} 18. Bxd8 {[%clk 0:02:20]}  Bc4 {[%clk 0:01:59]} 19. Bxc4 {[%clk 0:02:15]}  bxc4 {[%clk 0:01:53]} 20. Bf6 {[%clk 0:02:15]}  Rab8 {[%clk 0:01:51]} 21. Rac1 {[%clk 0:02:14]}  c3 {[%clk 0:01:45]} 22. Red1 {[%clk 0:02:13]}  Rfc8 {[%clk 0:01:34]} 23. Rxd4 {[%clk 0:02:10]}  c2 {[%clk 0:01:34]} 24. Bxg7 {[%clk 0:01:50]}  Kxg7 {[%clk 0:01:18]} 25. Nd2 {[%clk 0:01:49]}  Rb2 {[%clk 0:01:11]} 26. a4 {[%clk 0:01:49]}  Rcb8 {[%clk 0:01:05]} 27. Rc4 {[%clk 0:01:48]}  Rb1 {[%clk 0:00:50]} 28. Rxc2 {[%clk 0:01:47]}  R8b2 {[%clk 0:00:50]} 29. Nxb1 {[%clk 0:01:46]} 1-0


[Site "https://www.chess.com"]

[Event "Early Titled Tuesday Blitz | February 8 2022"]
[White "Necula, Iulian"]
[Black "Kostiukov, Alexandr"]
[WhiteFideId "1232380"]
[BlackFideId "14108100"]
[WhiteElo "1776"]
[BlackElo "2202"]
[Result "1-0"]
[Round "08"]
[TimeControl "180+1"]
[Date "2022.02.08"]
[WhiteClock "0:00:11"]
[BlackClock "0:00:31"]

1. b4 {[%clk 0:03:00]}  Nf6 {[%clk 0:02:55]} 2. Bb2 {[%clk 0:03:00]}  g6 {[%clk 0:02:56]} 3. c4 {[%clk 0:03:00]}  Bg7 {[%clk 0:02:56]} 4. Nf3 {[%clk 0:03:00]}  O-O {[%clk 0:02:56]} 5. g3 {[%clk 0:03:00]}  c5 {[%clk 0:02:50]} 6. a3 {[%clk 0:02:53]}  d5 {[%clk 0:02:47]} 7. cxd5 {[%clk 0:02:51]}  cxb4 {[%clk 0:02:44]} 8. axb4 {[%clk 0:02:50]}  Qxd5 {[%clk 0:02:38]} 9. Bg2 {[%clk 0:02:48]}  Qh5 {[%clk 0:02:32]} 10. Ra5 {[%clk 0:02:38]}  Qg4 {[%clk 0:02:24]} 11. d4 {[%clk 0:02:17]}  Nc6 {[%clk 0:02:18]} 12. Rg5 {[%clk 0:02:15]}  Qd7 {[%clk 0:02:17]} 13. b5 {[%clk 0:02:09]}  Nb4 {[%clk 0:02:10]} 14. O-O {[%clk 0:01:49]}  Ne4 {[%clk 0:02:05]} 15. Re5 {[%clk 0:01:38]}  Nd6 {[%clk 0:01:53]} 16. Rc5 {[%clk 0:01:34]}  Nxb5 {[%clk 0:01:41]} 17. Qa4 {[%clk 0:01:17]}  Nd6 {[%clk 0:00:44]} 18. Qxb4 {[%clk 0:01:11]}  b6 {[%clk 0:00:45]} 19. Rc2 {[%clk 0:01:06]}  Qf5 {[%clk 0:00:39]} 20. Rfc1 {[%clk 0:00:59]}  Bb7 {[%clk 0:00:37]} 21. Nbd2 {[%clk 0:00:51]}  b5 {[%clk 0:00:33]} 22. e4 {[%clk 0:00:50]}  Nxe4 {[%clk 0:00:31]} 23. Nxe4 {[%clk 0:00:50]}  Bxe4 {[%clk 0:00:31]} 24. Rc5 {[%clk 0:00:50]}  Qd7 {[%clk 0:00:28]} 25. Qxb5 {[%clk 0:00:45]}  Qg4 {[%clk 0:00:27]} 26. h3 {[%clk 0:00:40]}  Qe6 {[%clk 0:00:27]} 27. Ne5 {[%clk 0:00:32]}  Bxg2 {[%clk 0:00:26]} 28. Kxg2 {[%clk 0:00:33]}  Rab8 {[%clk 0:00:26]} 29. Qe2 {[%clk 0:00:30]}  Qb6 {[%clk 0:00:24]} 30. R1c2 {[%clk 0:00:28]}  Rfd8 {[%clk 0:00:23]} 31. d5 {[%clk 0:00:25]}  Rb7 {[%clk 0:00:21]} 32. Nc6 {[%clk 0:00:25]}  Rdd7 {[%clk 0:00:21]} 33. Bxg7 {[%clk 0:00:23]}  Kxg7 {[%clk 0:00:22]} 34. Qe5+ {[%clk 0:00:22]}  Kg8 {[%clk 0:00:21]} 35. R5c4 {[%clk 0:00:20]}  Qc7 {[%clk 0:00:22]} 36. Qxc7 {[%clk 0:00:20]}  Rbxc7 {[%clk 0:00:22]} 37. Nxe7+ {[%clk 0:00:19]}  Rxe7 {[%clk 0:00:23]} 38. Rxc7 {[%clk 0:00:19]}  Re5 {[%clk 0:00:23]} 39. Rd2 {[%clk 0:00:18]}  Kf8 {[%clk 0:00:23]} 40. d6 {[%clk 0:00:18]}  Re8 {[%clk 0:00:21]} 41. Rxa7 {[%clk 0:00:18]}  Rd8 {[%clk 0:00:21]} 42. d7 {[%clk 0:00:18]}  Ke7 {[%clk 0:00:21]} 43. Rc7 {[%clk 0:00:16]}  f6 {[%clk 0:00:19]} 44. Rc8 {[%clk 0:00:16]}  Rxd7 {[%clk 0:00:20]} 45. Rxd7+ {[%clk 0:00:13]}  Kxd7 {[%clk 0:00:21]} 46. Rh8 {[%clk 0:00:12]}  h5 {[%clk 0:00:21]} 47. Rh6 {[%clk 0:00:11]}  g5 {[%clk 0:00:20]} 48. Rxf6 {[%clk 0:00:11]}  Ke7 {[%clk 0:00:21]} 49. Rf5 {[%clk 0:00:12]}  g4 {[%clk 0:00:20]} 50. Rxh5 {[%clk 0:00:11]}  gxh3+ {[%clk 0:00:20]} 51. Kxh3 {[%clk 0:00:12]}  Kf6 {[%clk 0:00:21]} 52. Rb5 {[%clk 0:00:11]}  Kg6 {[%clk 0:00:21]} 53. Kg4 {[%clk 0:00:11]}  Kg7 {[%clk 0:00:22]} 54. Kg5 {[%clk 0:00:11]}  Kf7 {[%clk 0:00:23]} 55. Rb6 {[%clk 0:00:11]}  Ke7 {[%clk 0:00:24]} 56. Ra6 {[%clk 0:00:10]}  Kd7 {[%clk 0:00:25]} 57. Kf5 {[%clk 0:00:10]}  Kc7 {[%clk 0:00:26]} 58. g4 {[%clk 0:00:10]}  Kb7 {[%clk 0:00:27]} 59. Rh6 {[%clk 0:00:09]}  Kc7 {[%clk 0:00:27]} 60. g5 {[%clk 0:00:10]}  Kd7 {[%clk 0:00:28]} 61. g6 {[%clk 0:00:10]}  Ke7 {[%clk 0:00:29]} 62. Rh7+ {[%clk 0:00:11]}  Kf8 {[%clk 0:00:29]} 63. Kf6 {[%clk 0:00:10]}  Ke8 {[%clk 0:00:29]} 64. Rh8+ {[%clk 0:00:11]}  Kd7 {[%clk 0:00:29]} 65. g7 {[%clk 0:00:11]}  Kd6 {[%clk 0:00:30]} 66. g8=Q {[%clk 0:00:11]}  Kc5 {[%clk 0:00:31]} 67. Qd8 {[%clk 0:00:11]}  Kc4 {[%clk 0:00:31]} 68. Rh5 {[%clk 0:00:11]} 1-0


[Site "https://www.chess.com"]

[Event "Early Titled Tuesday Blitz | February 8 2022"]
[White "Omariev, Maksim"]
[Black "Brodowski, Piotr"]
[WhiteFideId "4193423"]
[BlackFideId "1124480"]
[WhiteElo "2534"]
[BlackElo "2422"]
[Result "0-1"]
[Round "08"]
[TimeControl "180+1"]
[Date "2022.02.08"]
[WhiteClock "0:00:01"]
[BlackClock "0:00:23"]

1. e4 {[%clk 0:03:00]}  c5 {[%clk 0:02:55]} 2. Nf3 {[%clk 0:03:01]}  Nc6 {[%clk 0:02:54]} 3. d4 {[%clk 0:03:01]}  cxd4 {[%clk 0:02:54]} 4. Nxd4 {[%clk 0:03:02]}  Nf6 {[%clk 0:02:55]} 5. Nc3 {[%clk 0:03:01]}  e5 {[%clk 0:02:55]} 6. Ndb5 {[%clk 0:03:01]}  d6 {[%clk 0:02:55]} 7. Bg5 {[%clk 0:03:01]}  a6 {[%clk 0:02:55]} 8. Na3 {[%clk 0:03:02]}  b5 {[%clk 0:02:55]} 9. Nd5 {[%clk 0:02:59]}  Be7 {[%clk 0:02:56]} 10. Bxf6 {[%clk 0:03:00]}  Bxf6 {[%clk 0:02:56]} 11. c4 {[%clk 0:03:01]}  b4 {[%clk 0:02:54]} 12. Nc2 {[%clk 0:03:01]}  a5 {[%clk 0:02:51]} 13. g3 {[%clk 0:02:58]}  O-O {[%clk 0:02:50]} 14. Bg2 {[%clk 0:02:58]}  g6 {[%clk 0:02:49]} 15. O-O {[%clk 0:02:54]}  Bg7 {[%clk 0:02:50]} 16. Qd3 {[%clk 0:02:52]}  Nb8 {[%clk 0:02:49]} 17. Rad1 {[%clk 0:02:45]}  Nd7 {[%clk 0:02:46]} 18. Nde3 {[%clk 0:02:41]}  Ra6 {[%clk 0:02:45]} 19. b3 {[%clk 0:02:18]}  Nc5 {[%clk 0:02:44]} 20. Qe2 {[%clk 0:02:18]}  Bb7 {[%clk 0:02:39]} 21. Nd5 {[%clk 0:02:16]}  f5 {[%clk 0:02:30]} 22. exf5 {[%clk 0:02:13]}  gxf5 {[%clk 0:02:30]} 23. Nce3 {[%clk 0:02:07]}  Kh8 {[%clk 0:01:55]} 24. Qh5 {[%clk 0:02:00]}  Bc8 {[%clk 0:01:42]} 25. Bh3 {[%clk 0:01:52]}  Qd7 {[%clk 0:01:06]} 26. f4 {[%clk 0:01:25]}  e4 {[%clk 0:01:04]} 27. g4 {[%clk 0:00:44]}  Qf7 {[%clk 0:01:00]} 28. Qxf7 {[%clk 0:00:42]}  Rxf7 {[%clk 0:01:00]} 29. Nxf5 {[%clk 0:00:25]}  Bxf5 {[%clk 0:00:45]} 30. gxf5 {[%clk 0:00:26]}  Nd3 {[%clk 0:00:29]} 31. Bg2 {[%clk 0:00:18]}  Bd4+ {[%clk 0:00:26]} 32. Kh1 {[%clk 0:00:16]}  Nf2+ {[%clk 0:00:27]} 33. Rxf2 {[%clk 0:00:16]}  Bxf2 {[%clk 0:00:28]} 34. Bxe4 {[%clk 0:00:16]}  Bd4 {[%clk 0:00:26]} 35. Kg2 {[%clk 0:00:14]}  Bg7 {[%clk 0:00:26]} 36. Kf3 {[%clk 0:00:10]}  a4 {[%clk 0:00:26]} 37. Nxb4 {[%clk 0:00:10]}  axb3 {[%clk 0:00:24]} 38. axb3 {[%clk 0:00:05]}  Rb6 {[%clk 0:00:23]} 39. Nc6 {[%clk 0:00:02]}  Rxb3+ {[%clk 0:00:23]} 40. Kg4 {[%clk 0:00:03]}  Bf8 {[%clk 0:00:23]} 41. h4 {[%clk 0:00:01]}  Rg7+ {[%clk 0:00:23]} 42. Kh5 {[%clk 0:00:01]}  Rh3 {[%clk 0:00:22]} 43. f6 {[%clk 0:00:01]}  Rf7 {[%clk 0:00:23]} 0-1


[Site "https://www.chess.com"]

[Event "Early Titled Tuesday Blitz | February 8 2022"]
[White "Orozbaev, Eldiar"]
[Black "Matlakov, Maxim"]
[WhiteFideId "13802240"]
[BlackFideId "4168003"]
[WhiteElo "2050"]
[BlackElo "2661"]
[Result "1-0"]
[Round "08"]
[TimeControl "180+1"]
[Date "2022.02.08"]
[WhiteClock "0:00:04"]
[BlackClock "0:00:03"]

1. e4 {[%clk 0:02:56]}  c6 {[%clk 0:03:00]} 2. Nc3 {[%clk 0:02:56]}  d5 {[%clk 0:03:00]} 3. Nf3 {[%clk 0:02:57]}  dxe4 {[%clk 0:02:56]} 4. Nxe4 {[%clk 0:02:55]}  Nf6 {[%clk 0:02:56]} 5. Nxf6+ {[%clk 0:02:53]}  exf6 {[%clk 0:02:56]} 6. Bc4 {[%clk 0:02:53]}  Bd6 {[%clk 0:02:56]} 7. O-O {[%clk 0:02:53]}  O-O {[%clk 0:02:55]} 8. h3 {[%clk 0:02:51]}  Nd7 {[%clk 0:02:53]} 9. d4 {[%clk 0:02:50]}  Re8 {[%clk 0:02:50]} 10. c3 {[%clk 0:02:47]}  Nf8 {[%clk 0:02:50]} 11. Be3 {[%clk 0:02:43]}  Ng6 {[%clk 0:02:48]} 12. d5 {[%clk 0:02:42]}  c5 {[%clk 0:02:47]} 13. a3 {[%clk 0:02:39]}  Qc7 {[%clk 0:02:44]} 14. Bd3 {[%clk 0:02:36]}  Bd7 {[%clk 0:02:42]} 15. c4 {[%clk 0:02:33]}  Bf4 {[%clk 0:02:23]} 16. Qd2 {[%clk 0:02:27]}  Bxe3 {[%clk 0:02:22]} 17. fxe3 {[%clk 0:02:27]}  Qd6 {[%clk 0:02:22]} 18. b4 {[%clk 0:02:25]}  b6 {[%clk 0:02:15]} 19. Rfe1 {[%clk 0:02:23]}  Ne5 {[%clk 0:02:15]} 20. Nxe5 {[%clk 0:02:21]}  Rxe5 {[%clk 0:02:16]} 21. e4 {[%clk 0:02:18]}  Rae8 {[%clk 0:02:15]} 22. Rab1 {[%clk 0:02:16]}  h5 {[%clk 0:02:12]} 23. Qf2 {[%clk 0:02:13]}  Rc8 {[%clk 0:02:03]} 24. b5 {[%clk 0:02:10]}  Rg5 {[%clk 0:02:01]} 25. Kh1 {[%clk 0:02:06]}  Re8 {[%clk 0:02:00]} 26. a4 {[%clk 0:02:02]}  Qe5 {[%clk 0:01:55]} 27. a5 {[%clk 0:01:57]}  Qc3 {[%clk 0:01:55]} 28. Re3 {[%clk 0:01:50]}  bxa5 {[%clk 0:01:22]} 29. e5 {[%clk 0:01:46]}  Qd4 {[%clk 0:01:22]} 30. Rd1 {[%clk 0:01:43]}  Kf8 {[%clk 0:01:14]} 31. Be2 {[%clk 0:01:38]}  Rf5 {[%clk 0:01:07]} 32. Qg1 {[%clk 0:01:33]}  Qh4 {[%clk 0:01:04]} 33. exf6 {[%clk 0:01:29]}  Rxe3 {[%clk 0:00:36]} 34. Qxe3 {[%clk 0:01:25]}  Rxf6 {[%clk 0:00:33]} 35. Qxc5+ {[%clk 0:01:24]}  Kg8 {[%clk 0:00:34]} 36. Qc7 {[%clk 0:01:19]}  Bxh3 {[%clk 0:00:28]} 37. Qb8+ {[%clk 0:00:41]}  Kh7 {[%clk 0:00:27]} 38. Bd3+ {[%clk 0:00:37]}  g6 {[%clk 0:00:24]} 39. Rf1 {[%clk 0:00:31]}  Rxf1+ {[%clk 0:00:03]} 40. Bxf1 {[%clk 0:00:32]}  Qf2 {[%clk 0:00:03]} 41. Kh2 {[%clk 0:00:27]}  Qxf1 {[%clk 0:00:04]} 42. Kxh3 {[%clk 0:00:26]}  Qxc4 {[%clk 0:00:04]} 43. d6 {[%clk 0:00:21]}  Qg4+ {[%clk 0:00:05]} 44. Kh2 {[%clk 0:00:20]}  a4 {[%clk 0:00:05]} 45. Qxa7 {[%clk 0:00:17]}  Qf4+ {[%clk 0:00:05]} 46. Kg1 {[%clk 0:00:16]}  Qxd6 {[%clk 0:00:05]} 47. Qxa4 {[%clk 0:00:14]}  Qc5+ {[%clk 0:00:05]} 48. Kf1 {[%clk 0:00:14]}  Kg7 {[%clk 0:00:06]} 49. Qa6 {[%clk 0:00:13]}  Qc4+ {[%clk 0:00:05]} 50. Ke1 {[%clk 0:00:13]}  Qe4+ {[%clk 0:00:05]} 51. Kf2 {[%clk 0:00:14]}  Qf4+ {[%clk 0:00:06]} 52. Kg1 {[%clk 0:00:14]}  Qe3+ {[%clk 0:00:05]} 53. Kf1 {[%clk 0:00:14]}  Qd3+ {[%clk 0:00:06]} 54. Ke1 {[%clk 0:00:14]}  Kh7 {[%clk 0:00:05]} 55. Qc6 {[%clk 0:00:13]}  Qb1+ {[%clk 0:00:04]} 56. Kd2 {[%clk 0:00:14]}  Qb2+ {[%clk 0:00:05]} 57. Ke3 {[%clk 0:00:14]}  Qb3+ {[%clk 0:00:05]} 58. Kd4 {[%clk 0:00:14]}  h4 {[%clk 0:00:04]} 59. b6 {[%clk 0:00:13]}  Qd1+ {[%clk 0:00:05]} 60. Ke5 {[%clk 0:00:13]}  Qe1+ {[%clk 0:00:04]} 61. Kf6 {[%clk 0:00:12]}  Qf2+ {[%clk 0:00:05]} 62. Ke7 {[%clk 0:00:12]}  Qe3+ {[%clk 0:00:05]} 63. Kd8 {[%clk 0:00:11]}  Qd4+ {[%clk 0:00:05]} 64. Kc8 {[%clk 0:00:11]}  Qg4+ {[%clk 0:00:05]} 65. Kb8 {[%clk 0:00:11]}  Qf4+ {[%clk 0:00:06]} 66. Ka8 {[%clk 0:00:11]}  Qe5 {[%clk 0:00:02]} 67. Qd7 {[%clk 0:00:05]}  Qa5+ {[%clk 0:00:02]} 68. Kb7 {[%clk 0:00:05]}  Kg7 {[%clk 0:00:02]} 69. Qd4+ {[%clk 0:00:05]}  f6 {[%clk 0:00:02]} 70. Qd7+ {[%clk 0:00:05]}  Kh6 {[%clk 0:00:02]} 71. Qd8 {[%clk 0:00:05]}  g5 {[%clk 0:00:02]} 72. Qxf6+ {[%clk 0:00:05]}  Kh5 {[%clk 0:00:03]} 73. Qf7+ {[%clk 0:00:04]}  Kh6 {[%clk 0:00:02]} 74. Kc7 {[%clk 0:00:04]}  g4 {[%clk 0:00:03]} 75. Qe6+ {[%clk 0:00:04]}  Kg5 {[%clk 0:00:03]} 76. Kc6 {[%clk 0:00:04]}  h3 {[%clk 0:00:03]} 77. gxh3 {[%clk 0:00:04]}  Qc3+ {[%clk 0:00:03]} 78. Kb7 {[%clk 0:00:04]}  gxh3 {[%clk 0:00:04]} 79. Qd5+ {[%clk 0:00:04]}  Kf4 {[%clk 0:00:04]} 80. Qd6+ {[%clk 0:00:04]}  Kf3 {[%clk 0:00:04]} 81. Qh6 {[%clk 0:00:04]}  Kg2 {[%clk 0:00:04]} 82. Ka8 {[%clk 0:00:04]}  h2 {[%clk 0:00:04]} 83. Qg5+ {[%clk 0:00:05]}  Kf1 {[%clk 0:00:04]} 84. Qf4+ {[%clk 0:00:04]}  Kg1 {[%clk 0:00:04]} 85. Qg4+ {[%clk 0:00:04]}  Kf2 {[%clk 0:00:04]} 86. Qh4+ {[%clk 0:00:04]}  Kg2 {[%clk 0:00:03]} 87. Qg4+ {[%clk 0:00:04]}  Qg3 {[%clk 0:00:03]} 88. Qe2+ {[%clk 0:00:04]}  Qf2 {[%clk 0:00:03]} 89. Qg4+ {[%clk 0:00:04]}  Kf1 {[%clk 0:00:04]} 90. Qd1+ {[%clk 0:00:04]}  Qe1 {[%clk 0:00:04]} 91. Qf3+ {[%clk 0:00:05]}  Kg1 {[%clk 0:00:04]} 92. b7 {[%clk 0:00:03]}  Qa5+ {[%clk 0:00:03]} 93. Kb8 {[%clk 0:00:04]}  h1=Q {[%clk 0:00:02]} 94. Qg3+ {[%clk 0:00:04]}  Qg2 {[%clk 0:00:02]} 95. Qe3+ {[%clk 0:00:03]}  Qf2 {[%clk 0:00:02]} 96. Qg5+ {[%clk 0:00:04]}  Kf1 {[%clk 0:00:02]} 97. Qxa5 {[%clk 0:00:04]}  Qf8+ {[%clk 0:00:02]} 98. Ka7 {[%clk 0:00:04]}  Qf2+ {[%clk 0:00:02]} 99. Ka6 {[%clk 0:00:04]}  Qe2+ {[%clk 0:00:02]} 100. Qb5 {[%clk 0:00:05]}  Kg1 {[%clk 0:00:03]} 101. Qxe2 {[%clk 0:00:04]} 1-0


[Site "https://www.chess.com"]